Cogmind - Beta 14 @@@ ROGUE MODE // 2024.11.12 @ 18:05:07 Player: Shimmyarah Result: Destroyed by PC-7ND(R) with Subdweller Laser Performance ------------- Evolutions (0) 0 Regions Visited (2) 400 Robots Destroyed (50) 250 Value Destroyed (781) 781 Prototype IDs (0) 0 Alien Tech Used (0) 0 Bonus (0) 0 TOTAL SCORE: 1431 Bonus ------- None Cogmind --------- Core Integrity 0/250 Matter 220/300 Energy 204/250 System Corruption 9% Temperature Cool (6) Movement Rolling (125) Ox3 Location -10/Subcaves Parts ------- > --- POWER (1) -------- Ion Engine > --- PROPULSION (2) --- Wheel Subdweller Monowheel > --- UTILITY (2) ------ Large Storage Unit Makeshift Light Armor Plating > --- WEAPON (2) ------- Mini Grenade Launcher Mini Grenade Launcher > --- INVENTORY (15) --- Light Ion Engine Wheel Cooling System Large Matter Pod (150) Structural Scanner Subdweller Optics Sensor Array Hacking Suite Subdweller Laser Subdweller Machine Gun Mini Grenade Launcher Datajack Welding Torch Mining Claw Peak State ------------ > --- POWER ------------ Ion Engine > --- PROPULSION ------- Wheel Subdweller Monowheel > --- UTILITY ---------- Large Storage Unit Makeshift Light Armor Plating > --- WEAPON ----------- Mini Grenade Launcher Mini Grenade Launcher > --- INVENTORY -------- Light Ion Engine Wheel Cooling System Large Matter Pod Structural Scanner Subdweller Optics Sensor Array Hacking Suite Subdweller Laser Assault Rifle Mini Grenade Launcher Datajack Welding Torch Mining Claw [Rating: 15] Favorites ----------- Power Ion Engine Engine Ion Engine Power Core Light Nuclear Core Propulsion Wheel Wheel Wheel Utility Small Storage Unit Device Seismic Detector Storage Small Storage Unit Processor Signal Interpreter Protection Makeshift Light Armor Plating Weapon Assault Rifle Energy Gun EM Pulse Gun Ballistic Gun Assault Rifle Launcher Mini Grenade Launcher Special Weapon Mining Laser Slashing Weapon Mining Claw Build | -11 -10 -10 ------- Run | Yrd Mat Sub Slots Evolved . | . . . Power . | . . . Propulsion . | . . . Utility . | . . . Weapon . | . . . Parts Attached 51 | 7 39 5 Power 7 | 1 6 . Engine 6 | 1 5 . Core 1 | . 1 . Reactor . | . . . Propulsion 8 | 2 5 1 Treads . | . . . Leg . | . . . Wheel 8 | 2 5 1 Hover . | . . . Flight . | . . . Utility 8 | 2 4 2 Device 4 | 1 3 . Storage 2 | 1 1 . Processor 1 | . . 1 Hackware . | . . . Protection 1 | . . 1 Artifact . | . . . Weapon 28 | 2 24 2 Energy Gun 9 | 2 7 . Energy Cannon . | . . . Ballistic Gun 8 | . 8 . Ballistic Cannon . | . . . Launcher 3 | . 1 2 Special Weapon 6 | . 6 . Impact Weapon . | . . . Slashing Weapon 2 | . 2 . Piercing Weapon . | . . . Special Melee Weapon . | . . . Unidentified Prototypes . | . . . Parts Lost 5 | . 5 . Power 2 | . 2 . Propulsion 1 | . 1 . Utility . | . . . Weapon 2 | . 2 . Highest Loss Streak 2 | . 2 . To Critical Strikes . | . . . Average Slot Usage (%) 98 | . 98 100 Engine 11 | . 11 14 Core 2 | . 2 . Wheel 27 | . 27 28 Device 12 | . 14 3 Storage 14 | . 14 14 Energy Gun 4 | . 4 . Ballistic Gun 14 | . 15 8 Launcher 1 | . . 9 Special Weapon 6 | . 6 . Slashing Weapon 1 | . . 9 Peak Build Rating 15 | 8 12 15 Average Rating 9 | 6 9 11 On Entrance 5 | . 8 9 Naked Turns . | . . . Heaviest Build 31 | 12 30 31 Greatest Support 30 | 20 20 30 Greatest Overweight (x) 4 | . 4 3 Average Overweight (x) . | . . . Largest Inventory Capacity 15 | 8 15 15 Average Capacity 11 | 7 11 15 Most Carried 15 | 8 15 15 Average Carried 10 | 5 11 14 Final Capacity 15 | 8 15 15 Final Carried 15 | 8 15 14 Class Distribution -------------------- 75% | Mutant 24% | Scavenger-Mutant Dominant Class ---------------- Mutant | -10/Materials Mutant | -10/Subcaves Resources | -11 -10 -10 ----------- Run | Yrd Mat Sub Matter Collected 1310 | 314 820 176 Remotely . | . . . Salvage Created 1415 | 354 1034 27 Parts 97 | 34 61 2 Haulers Intercepted 2 | . 2 . Recyclers Shooed 3 | . 3 . Parts Field Recycled . | . . . Retrieved Matter . | . . . Parts Self-Destructed 4 | . . 4 Prevented . | . . . Kills | -11 -10 -10 ------- Run | Yrd Mat Sub Combat Hostiles Destroyed 17 | . 15 2 Guns 14 | . 14 . Cannons 1 | . 1 . AOE 2 | . . 2 Classes Destroyed 10 | 3 6 1 Worker 8 | 4 4 . Builder 4 | . 4 . Tunneler 11 | 9 2 . Hauler 2 | . 2 . Recycler 4 | 1 3 . Operator 1 | . 1 . Watcher 3 | . 3 . Swarmer 3 | . 3 . Grunt 12 | . 12 . Subdweller 2 | . . 2 Best Kill Streak 5 | 3 5 2 Combat Bots Only 2 | . 2 2 Max Kills in Single Turn 2 | 1 2 2 Gunslinging . | . . . Exploded 2 | . . 2 Melee . | . . . Uniques/NPCs Destroyed . | . . . Combat | -11 -10 -10 -------- Run | Yrd Mat Sub Hostile Shots Fired 86 | . 80 6 Missed 29 | . 27 2 Damage Taken 1068 | . 981 87 Core 251 | . 230 21 Absorbed by Shields . | . . . Regen/Repaired (Parts) 23 | . 23 . Core Remaining (%) 100 | 100 . . Volleys Fired 202 | 79 121 2 Largest 2 | 1 2 2 Hottest 140 | 40 140 60 Shots Fired 286 | 79 203 4 Gun 254 | 79 175 . Cannon . | . . . Launcher 8 | . 4 4 Special 24 | . 24 . Kinetic 134 | . 134 . Thermal 116 | 79 37 . Explosive 8 | . 4 4 Electromagnetic 28 | . 28 . Robot Hit Streak 15 | 8 15 4 Robot Miss Streak 8 | 8 6 . Penetration Max . | . . . Secondary Targets . | . . . Shots Hit Robots 149 | 40 106 3 Core Hits 74 | 15 57 2 Critical Kills . | . . . Critical Parts Destroyed . | . . . Critical Strikes . | . . . Melee Attacks 2 | . 2 . Impact . | . . . Slashing 2 | . 2 . Piercing . | . . . Sneak Attacks . | . . . Combat Hostiles . | . . . Follow-up Attacks . | . . . Damage Inflicted 2545 | 382 1761 402 Guns 1639 | 382 1257 . Cannons . | . . . Explosions 734 | . 332 402 Melee . | . . . Ramming 52 | . 52 . Kinetic 900 | . 900 . Thermal 590 | 382 208 . Explosive 734 | . 332 402 Electromagnetic 269 | . 269 . Impact . | . . . Slashing . | . . . Piercing . | . . . Highest Corruption 9 | . 9 9 Average Corruption 8 | . 8 9 Corruption Purged . | . . . Corruption Blocked . | . . . Effects 52 | . 44 8 Message Errors 9 | . 8 1 Matter Fused 12 | . 9 3 Heat Flow Errors 8 | . 8 . Energy Discharges 11 | . 9 2 Parts Rejected 1 | . 1 . Data Loss (minor) 3 | . 2 1 Data Loss (major) 3 | . 3 . Misfires 2 | . 2 . Alerts 2 | . 1 1 Weapon Failures 1 | . 1 . Overload Shots . | . . . Overflow Damage 3 | . 3 . Projectiles . | . . . Explosions 3 | . 3 . Melee . | . . . Knockbacks . | . . . Impact . | . . . Kinetic . | . . . Secondary . | . . . Self-Inflicted Damage 55 | . 55 . Shots 1 | . 1 . Rammed 8 | . 8 . Targets Rammed 8 | . 8 . Kicked . | . . . Crushed . | . . . Highest Temperature 268 | . 268 . Average Temperature 74 | . 74 . Received Heat Transfer 330 | . 324 6 Siege Activations . | . . . Robots Corrupted . | . . . Combat Hostiles . | . . . Parts Fried . | . . . Impact Corruptions . | . . . Robots Melted . | . . . Combat Hostiles . | . . . Parts Melted 1 | . 1 . Heat Transferred 1325 | 875 450 . Parts Sabotaged . | . . . Parts Stolen . | . . . Parts Stripped . | . . . Power Chain Reactions . | . . . Alert | -11 -10 -10 ------- Run | Yrd Mat Sub Peak Influence 384 | 70 384 . Initial 45 | . 45 . Average 181 | 38 210 . Maximum Alert Level 1 | . 1 . Low Security (%) 56 | 100 47 . Level 1 43 | . 52 . Level 2 . | . . . Level 3 . | . . . Level 4 . | . . . Level 5 . | . . . High Security . | . . . Max Security . | . . . Squads Dispatched 4 | . 4 . Investigation 3 | . 3 . Extermination . | . . . Reinforcement 1 | . 1 . Assault . | . . . Garrison . | . . . Intercept . | . . . Searches Triggered . | . . . Construction Impeded . | . . . Haulers Reinforced . | . . . Active Scanning Responses . | . . . Cargo Convoy Interrupts . | . . . Stealth | -11 -10 -10 --------- Run | Yrd Mat Sub Distress Signals . | . . . Communications Jammed . | . . . Distress Signals . | . . . Times Spotted 30 | . 27 3 Peak Tracking Total 3 | . 3 2 Tactical Retreats 2 | . 2 . Traps | -11 -10 -10 ------- Run | Yrd Mat Sub Traps Triggered 2 | . 2 . Indirectly . | . . . Trap Hack Attempts . | . . . Triggered . | . . . Disarmed . | . . . Reprogrammed . | . . . Reused . | . . . Traps Extracted . | . . . Installed . | . . . Triggered . | . . . Machines | -11 -10 -10 ---------- Run | Yrd Mat Sub Machines Disabled 4 | . 4 . Max in Single Turn 2 | . 2 . Machines Repaired . | . . . Machines Dismantled . | . . . Machines Sabotaged . | . . . Overloaded Fab Kills . | . . . Hacking | -11 -10 -10 --------- Run | Yrd Mat Sub Machines Accessed 11 | . 11 . Terminals 8 | . 8 . Fabricators . | . . . Repair Stations 1 | . 1 . Recycling Units 2 | . 2 . Scanalyzers . | . . . Garrison Access . | . . . Total Hacks 31 | . 31 . Successful 19 | . 19 . Failed 12 | . 12 . Catastrophic 1 | . 1 . Database Lockouts . | . . . Manual 29 | . 29 . Terminals 24 | . 24 . Fabricators . | . . . Repair Stations 3 | . 3 . Recycling Units 4 | . 4 . Scanalyzers . | . . . Garrison Access . | . . . Terminal Hacks 2 | . 2 . Part Schematic 1 | . 1 . Terminal Index 1 | . 1 . Fabricator Hacks . | . . . Repair Station Hacks 2 | . 2 . Scan Component 1 | . 1 . Repair 1 | . 1 . Recycling Unit Hacks . | . . . Scanalyzer . | . . . Garrison Access Hacks . | . . . Unauthorized Hacks 15 | . 15 . Terminals 11 | . 11 . Botnet 5 | . 5 . Skim 6 | . 6 . Fabricators . | . . . Repair Stations . | . . . Recycling Units 4 | . 4 . Monitor 2 | . 2 . Mask 1 | . 1 . Tunnel 1 | . 1 . Scanalyzers . | . . . Garrison Access . | . . . Data Cores Recovered . | . . . Used . | . . . Hacking Detections 9 | . 9 . Full Trace Events 1 | . 1 . Feedback Events . | . . . Feedback Blocked . | . . . Robot Schematics Acquired . | . . . Robots Built . | . . . Authchips . | . . . Time . | . . . Total Robot Build Rating . | . . . Part Schematics Acquired 1 | . 1 . Parts Built . | . . . Authchips . | . . . Time . | . . . Total Part Build Rating . | . . . Parts Repaired 1 | . 1 . Time 26 | . 26 . Parts Recycled . | . . . Recycled Matter . | . . . Retrieved Matter . | . . . Retrieved Components . | . . . Parts Scanalyzed . | . . . Part Schematics Acquired . | . . . Parts Damaged . | . . . Bothacking | -11 -10 -10 ------------ Run | Yrd Mat Sub Used RIF Installer . | . . . Robots Hacked . | . . . Non-combat . | . . . Combat . | . . . Robot Hacks Applied . | . . . Relay Couplers Released . | . . . Fabnet Peak Effective % . | . . . Robots Rewired . | . . . Allies Hacked . | . . . Hacks Repelled . | . . . Allies | -11 -10 -10 -------- Run | Yrd Mat Sub Total Allies . | . . . Largest Group . | . . . Highest-Rated Group . | . . . Highest-Rated Ally . | . . . Total Orders . | . . . Ally Attacks . | . . . Total Damage . | . . . Kills . | . . . Allies Corrupted . | . . . Allies Melted . | . . . Intel | -11 -10 -10 ------- Run | Yrd Mat Sub Robot Analysis Total . | . . . Derelict Logs Recovered . | . . . Drone Launches . | . . . Drone Recoveries . | . . . Exploration | -11 -10 -10 ------------- Run | Yrd Mat Sub Turns Passed 2514 | 392 1873 249 Spaces Moved 1806 | 203 1374 229 Core 21 | 14 7 . Treads . | . . . Legs . | . . . Wheels 1785 | 189 1367 229 Hover . | . . . Flight . | . . . Fastest Speed 50 | 50 80 95 Average Speed 89 | 77 88 100 Slowest Speed 250 | 80 250 125 Overloaded Moves . | . . . Propulsion Burnouts . | . . . Robots Hopped . | . . . Cave-ins Triggered 1 | . 1 . Exploration Rate (%) 40 | 7 99 15 Regions Visited 2 Branch Regions 1 Pre-discovered Areas 2 | . 1 1 Known Exits Taken 1 | . 1 . Unknown Exits Taken 1 | 1 . . Scrap Searched 5 | . . 5 Spaces Dug 13 | . 13 . Terrain Destroyed 53 | . 40 13 Melee . | . . . Projectile 18 | . 18 . AOE 35 | . 22 13 Terrain Rammed . | . . . Walls Destroyed . | . . . Machines Disabled . | . . . Actions | -11 -10 -10 --------- Run | Yrd Mat Sub Total 2374 | 357 1772 245 Wait 229 | 53 176 . Move 1804 | 202 1373 229 Hop . | . . . Pick Up 48 | 15 29 4 Fast Attach 8 | 1 7 . Attach 11 | 6 5 . Detach . | . . . Swap 32 | . 27 5 Drop 30 | 1 24 5 Fire 202 | 79 121 2 Melee 2 | . 2 . Ram 8 | . 8 . Kick . | . . . Crush . | . . . Escape Stasis . | . . . Rewire . | . . . Trap . | . . . Miscellaneous . | . . . Route ------- -11/Scrapyard -10/Materials (discovered 5 exits: *Mat x3 / [*Min] / *Sub) -10/Subcaves (discovered 1 exit: *Mat) History --------- Turn | Location | Event 11 | -11/Scrapyard | Discovered new exit (range 16) 393 | -11/Scrapyard | Entered Materials 394 | -10/Materials | Build established: Mutant 527 | -10/Materials | Discovered new exit (range 10) 822 | -10/Materials | Repaired Mining Laser 967 | -10/Materials | Crushed by falling debris 967 | -10/Materials | Core integrity fell below 50% 1049 | -10/Materials | Discovered new exit (range 6) 1215 | -10/Materials | Discovered new exit (range 2) 1457 | -10/Materials | Identified exit to Materials 1457 | -10/Materials | Identified exit to Subcaves 1536 | -10/Materials | Loaded intel: 8 terminal locations 1590 | -10/Materials | Core integrity fell below 20% 1604 | -10/Materials | Learned 4 Recycling zone layouts 1664 | -10/Materials | Loaded intel: 28 non-interactive machine locations 1716 | -10/Materials | Learned Materials terminal intel 1850 | -10/Materials | Build established: Scavenger-Mutant 1862 | -10/Materials | Learned Storage terminal intel 2266 | -10/Materials | Entered Subcaves 2277 | -10/Subcaves | Build established: Mutant 2319 | -10/Subcaves | Discovered new exit (range 10) 2321 | -10/Subcaves | Learned location of Zion (-7) 2321 | -10/Subcaves | Met a Zionite searching for "candidates" 2333 | -10/Subcaves | Identified exit to Materials 2515 | -10/Subcaves | Destroyed by PC-7ND(R) with Subdweller Laser Last Messages --------------- 02377_ Acquired 31 matter. 02382_ Dropped Assault Rifle. 02383_ Acquired Mak. Light Armor Plating. 02389_ Subatomizers dissect the Wheel. 02389_ Dropped Mni. Grenade Launcher. 02390_ Acquired Sub. Optics. 02402_ System corrupted: Matter fused (-10). 02427_ Discarded Signal Interpreter. 02434_ 73#KLCIB#MKKUEFEOR>#:KEM2UG 02434_ C2-XFJ(R) destroyed. 02434_ 5E-H5Y(R) destroyed. 02447_ Dropped Assault Rifle. 02448_ Acquired Sub. Machine Gun. 02449_ Acquired 5 matter. 02455_ System corrupted: Matter fused (-5). 02479_ System corrupted: IFF burst signal emitted. 02486_ Sub. Monowheel shoots sparks and powers down. 02511_ System corrupted: Energy discharge (-82). Map ----- +----------------------------------------------------+ | ?????????????????????????????????????????????????? | | ?????????????????????????????????????????????????? | | ?????????????????????????????????????????????????? | | ?????????????????????????????????????????????????? | | ?????????????????????????????????????????????????? | | ?????????????????????????????????????????????????? | | ?????????????????????????????????????????????????? | | ?????????????????????????????????????????????????? | | ?????????????????????????????????????????????????? | | ?????????????????????????????????????????????????? | | ?????????????????????????????????????????????????? | | ?????????????????????????????????????????????????? | | ?????????????????????????????????????????????????? | | ?????????????????????????????????????????????????? | | ?????????????????????????????????????????????????? | | ?????????????????????????????????????????????????? | | ?????????????????????????????????????????????????? | | ?????????????????????????????????????????????????? | | ????????????????????#######????????? ????????????? | | ????????????????????# #???????# ????????????? | | ????????????????????# #?????? ?????????????? | | ?????????#######????# #????? #??????????????? | | ????????## # # #?????# #????# #??????????????? | | ????????# #?????## ##??## #??????????????? | | ????????## # #??????# ##?# #??????????????? | | ?????????### ##?????## @## ##?????????????? | | ????????## ## #??????## ##????????????? | | ????????# ##??????## ##???????????? | | ????????### ##?????## ## ####????????? | | ??????????### #####?# #?# ????????? | | ???????????# # #### ##? R ???##????? | | ???????????## # #? ??# #????? | | ????????????# #?# ## ## #????? | | ????????????# & ### #???? ##???? | | ???????? ## ##??? "##??? | | ?????? "" " !& #??? ##?? | | ????????# "" [ ##?? #?? | | ????????# " ### #??? | | ????????# " ## #??? | | ????????# """###""" ## #??? | | ????????##""""""""## #### #??? | | ?????????## " #?### ##??? | | ??????????## #??### ## #???? | | ???????????## #???## ### #???? | | ????????????? " ##???# ## #???? | | ?????????????? """ #????## #????? | | ???????????????? ?"""" ?????# # ##????? | | ???????????????????"" ????# ### #?????? | | ???????????????????? ?????####### ##????? | | ??????????????????? ????####### ##???? | +----------------------------------------------------+ Best States ------------- Heat Dissipation 25 Energy Generation 14 Energy Capacity 250 Matter Stores 300 Matter Capacity 300 Sight Range 16 Robot Scan Range 14 Terrain Scan Range 16 Terrain Scan Density 10 Armor Coverage 100 Evasion (%) 50 Item Schematics ----------------- Hcp. Storage Unit | -10/Materials | Hacked Robot Schematics ------------------ None Fabricated ------------ Nothing Alien Tech Used ----------------- None Achievements -------------- None Challenges ------------ None Game ------ Seed AssemblyGreatMediator Manual? 0 Play Time 00:31:53 Cumulative 39.5 hours Start 2024.11.12 @ 17:23:42 End 2024.11.12 @ 18:05:07 Sessions 1 Manual Loads 0 Difficulty Rogue Special Mode None Game No. 79 Rogue 79 Adventurer 0 Explorer 0 Win Type - Total 0 Types 0/0/0/0/0/0/0/0/0 Lore% 15 Gallery% 26 Achievement% 24 Wizard Run 0 Options --------- Layout 1 ASCII 0 Keyboard 0 Movement Arrows Keybinds 0 Fullscreen 1 Font 24/Smallcaps Map View 50x40 Zoom Use 0% Tactical HUD 1 Map Filters NONE Filters NONE Steam 1 RUN: 6d71426b-87bc-481c-a3c6-8763b23019ea